fUSD/lending_fUSD_20260613
["ID","MTS","AMOUNT","RATE_DAILY","PERIOD"]
[424944246,1781314261000,-945.31538218,8.59e-05,2]
[424944256,1781314261000,-167.55,8.787e-05,2]
[424944244,1781314261000,-945.31538218,8.59e-05,2]
[424944250,1781314261000,-6020.72,8.592e-05,2]
[424944235,1781314261000,-1000.92216935,8.59e-05,2]
[424944240,1781314261000,-945.31538218,8.59e-05,2]
[424944239,1781314261000,-1000.92216935,8.59e-05,2]
[424944241,1781314261000,-945.31538218,8.59e-05,2]
[424944243,1781314261000,-945.31538218,8.59e-05,2]
[424944245,1781314261000,-945.31538218,8.59e-05,2]
[424944242,1781314261000,-945.31538218,8.59e-05,2]
[424944272,1781314262000,-250.0,9.45e-05,2]
[424944273,1781314262000,-15296.6072,9.47e-05,2]
[424944267,1781314262000,-300.0,9.45e-05,2]
[424944265,1781314262000,-151.0,9.321e-05,2]
[424944266,1781314262000,-293.92,9.39e-05,2]
[424944268,1781314262000,-193.3194991,9.45e-05,2]
[424944263,1781314262000,-1956.41,9.27e-05,2]
[424944259,1781314262000,-3270.25164557,9.068e-05,2]
[424944262,1781314262000,-802.26,9.18e-05,2]
[424944260,1781314262000,-701.25,9.115e-05,2]
[424944258,1781314262000,-1239.19364896,8.968e-05,2]
[424944257,1781314262000,-500.0,8.865e-05,2]
[424944271,1781314262000,-300.0,9.45e-05,2]
[424944264,1781314262000,-302657.5283,9.29e-05,2]
[424944261,1781314262000,-10831.51222548,9.169e-05,2]
[424944270,1781314262000,-500.0,9.45e-05,2]
[424944274,1781314262000,-3158.3392,9.47e-05,2]
[424944287,1781314262000,-4821.12710788,9.47e-05,2]
[424944283,1781314262000,-336.52004712,9.47e-05,2]
[424944282,1781314262000,-524.60980056,9.47e-05,2]
[424944284,1781314262000,-332.25400439,9.47e-05,2]
[424944285,1781314262000,-678.99185515,9.47e-05,2]
[424944281,1781314262000,-464.76347741,9.47e-05,2]
[424944286,1781314262000,-423.95581672,9.47e-05,2]
[424944277,1781314262000,-30385.1639,9.47e-05,2]
[424944276,1781314262000,-578.5051,9.47e-05,2]
[424944278,1781314262000,-242860.56766494,9.47e-05,2]
[424944279,1781314262000,-81902.46200007,9.47e-05,2]
[424944275,1781314262000,-2500.0,9.47e-05,2]
[424944280,1781314262000,-541.54300055,9.47e-05,2]
[424944269,1781314262000,-250.0,9.45e-05,2]
[424944288,1781314263000,-24443.9998,9.47e-05,2]
[424944289,1781314263000,-5073.65060413,9.47e-05,2]
[424944293,1781314526000,-742.42897699,8.39e-05,2]
[424944295,1781314580000,-710.8301958,8.48e-05,2]
[424944297,1781314632000,-160.0,8.59e-05,2]
[424944298,1781314686000,-300.0,8.591e-05,2]
[424944299,1781314739000,-254.40584545,8.59e-05,2]
[424944300,1781314793000,-153.30674252,8.59e-05,2]
[424944301,1781314847000,-500.0,8.59e-05,2]
[424944302,1781314900000,-500.0,8.589e-05,2]
[424944303,1781314954000,-200.0,8.557e-05,2]
[424944304,1781315007000,-300.0,8.573e-05,2]
[424944317,1781315242000,-299.97,8.169e-05,2]
[424944318,1781315295000,-1332.84219555,8.126e-05,2]
[424944320,1781315318000,-1332.84219555,8.126e-05,2]
[424944322,1781315339000,-1550.37920903,8.126e-05,2]
[424944321,1781315339000,-3144.15639987,8.126e-05,2]
[424944324,1781315340000,-164.53,8.219e-05,2]
[424944323,1781315340000,-701.25,8.216e-05,2]
[424944326,1781315340000,-273.95219555,8.395e-05,2]
[424944325,1781315340000,-193.11,8.339e-05,2]
[424944327,1781315362000,-22.62522867,8.395e-05,2]
[424944328,1781315383000,-384.3198416,8.395e-05,2]
[424944330,1781315384000,-384.3198416,8.424e-05,2]
[424944329,1781315384000,-142.02492531,8.395e-05,2]
[424944331,1781315417000,-500.0,8.125e-05,2]
[424944332,1781315418000,-500.0,8.125e-05,2]
[424944334,1781315418000,-500.0,8.125e-05,2]
[424944335,1781315418000,-500.0,8.125e-05,2]
[424944336,1781315418000,-500.0,8.125e-05,2]
[424944337,1781315418000,-358.99352072,8.125e-05,2]
[424944333,1781315418000,-500.0,8.125e-05,2]
[424944342,1781315432000,-302.65311228,8.285e-05,2]
[424944340,1781315432000,-804.89,8.269e-05,2]
[424944341,1781315432000,-1662.92688772,8.285e-05,2]
[424944344,1781315432000,-300.0,8.424e-05,2]
[424944343,1781315432000,-579.55918558,8.424e-05,2]
[424944349,1781315432000,-348.2360598,8.505e-05,2]
[424944346,1781315432000,-839.0,8.5e-05,2]
[424944348,1781315432000,-1411.57056289,8.505e-05,2]
[424944347,1781315432000,-300.0,8.5e-05,2]
[424944345,1781315432000,-152.98,8.452e-05,2]
[424944389,1781315441000,-270.40341536,8.505e-05,2]
[424944390,1781315441000,-537.27830085,8.505e-05,2]
[424944391,1781315441000,-593.0549611,8.505e-05,2]
[424944394,1781315441000,-748.0,8.505e-05,2]
[424944392,1781315441000,-297.71196543,8.505e-05,2]
[424944393,1781315441000,-301.87915129,8.505e-05,2]
[424944395,1781315441000,-29081.51028328,8.505e-05,2]
[424944397,1781315441000,-830.68439755,8.505e-05,2]
[424944398,1781315441000,-2503.08789657,8.505e-05,2]
[424944396,1781315441000,-1355521.04613903,8.505e-05,2]
[424944409,1781315443000,-3519.0223194,8.505e-05,2]
[424944408,1781315443000,-269.53870786,8.505e-05,2]
[424944407,1781315443000,-1304.85704239,8.505e-05,2]
[424944414,1781315446000,-925.0,8.505e-05,2]
[424944415,1781315446000,-5578.42736774,8.505e-05,2]
[424944417,1781315446000,-431.885,8.505e-05,2]
[424944418,1781315446000,-500.0,8.505e-05,2]
[424944416,1781315446000,-2644.62968745,8.505e-05,2]
[424944421,1781315468000,-5203.76694484,8.505e-05,2]
[424944422,1781315491000,-5203.76694484,8.505e-05,2]
[424944423,1781315513000,-500.0,8.423e-05,2]
[424944424,1781315565000,-500.0,8.423e-05,2]
[424944428,1781315801000,-677.06,8.173e-05,2]
[424944430,1781315855000,-250.0,8.193e-05,2]
[424944433,1781315909000,-200.0,8.213e-05,2]
[424944435,1781315962000,-261.95,8.142e-05,2]
[424944436,1781316015000,-189.00485717,8.215e-05,2]
[424944437,1781316069000,-575.22767093,8.152e-05,2]
[424944438,1781316122000,-162.09044904,8.152e-05,2]
[424944439,1781316176000,-1684.98,8.144e-05,2]
[424944441,1781316228000,-150.0,8.15e-05,2]
[424944442,1781316282000,-227.03698316,8.151e-05,2]
[424944444,1781316466000,-346.129,8.05e-05,2]
[424944445,1781316520000,-718.83,8.124e-05,2]
[424944454,1781316573000,-500.0,8.148e-05,2]
[424944455,1781316573000,-24.58304127,8.148e-05,2]
[424944453,1781316573000,-500.0,8.148e-05,2]
[424944451,1781316573000,-500.0,8.148e-05,2]
[424944450,1781316573000,-500.0,8.148e-05,2]
[424944449,1781316573000,-244.85726847,8.148e-05,2]
[424944452,1781316573000,-500.0,8.148e-05,2]
[424944448,1781316573000,-500.0,8.148e-05,2]
[424944447,1781316573000,-158.92588821,8.148e-05,2]
[424944457,1781316574000,-500.0,8.148e-05,2]
[424944459,1781316574000,-500.0,8.148e-05,2]
[424944456,1781316574000,-475.41695873,8.148e-05,2]
[424944458,1781316574000,-266.68557803,8.148e-05,2]
[424944461,1781316574000,-500.0,8.148e-05,2]
[424944467,1781316574000,-10.22981571,8.148e-05,2]
[424944462,1781316574000,-500.0,8.148e-05,2]
[424944460,1781316574000,-500.0,8.148e-05,2]
[424944464,1781316574000,-500.0,8.148e-05,2]
[424944466,1781316574000,-160.52501411,8.148e-05,2]
[424944465,1781316574000,-339.47498589,8.148e-05,2]
[424944463,1781316574000,-500.0,8.148e-05,2]
[424944472,1781316575000,-500.0,8.148e-05,2]
[424944468,1781316575000,-489.77018429,8.148e-05,2]
[424944471,1781316575000,-500.0,8.148e-05,2]
[424944473,1781316575000,-500.0,8.148e-05,2]
[424944469,1781316575000,-500.0,8.148e-05,2]
[424944474,1781316575000,-22187.58264103,8.153e-05,2]
[424944470,1781316575000,-500.0,8.148e-05,2]
[424944475,1781316618000,-1723.46904113,8.153e-05,2]
[424944590,1781316642000,-2240.08065196,8.153e-05,2]
[424944591,1781316643000,-53027.1605763,8.153e-05,2]
[424944593,1781316643000,-413.29841279,8.153e-05,2]
[424944594,1781316643000,-4069.71615022,8.153e-05,2]
[424944596,1781316643000,-160.0,8.153e-05,2]
[424944595,1781316643000,-22543.63282094,8.153e-05,2]
[424944592,1781316643000,-6047.38970563,8.153e-05,2]
[424944598,1781316643000,-164.64,8.219e-05,2]
[424944600,1781316643000,-1972.46,8.219e-05,2]
[424944599,1781316643000,-2005.23,8.219e-05,2]
[424944601,1781316643000,-60027.45148834,8.42e-05,2]
[424944602,1781316643000,-752.28913647,8.5e-05,2]
[424944603,1781316643000,-320.0,8.5e-05,2]
[424944597,1781316643000,-1288.53,8.217e-05,2]
[424944636,1781316644000,-667.96197469,8.5e-05,2]
[424944635,1781316644000,-492.78233579,8.5e-05,2]
[424944637,1781316644000,-2142.91455305,8.5e-05,2]
[424944638,1781316644000,-178.949,8.5e-05,2]
[424944641,1781316644000,-504.46644695,8.501e-05,2]
[424944644,1781316644000,-317.2337231,8.501e-05,2]
[424944645,1781316644000,-15181.48637208,8.502e-05,2]
[424944646,1781316644000,-1530.25150137,8.502e-05,2]
[424944647,1781316644000,-4665.62257392,8.502e-05,2]
[424944649,1781316644000,-559.34675688,8.502e-05,2]
[424944648,1781316644000,-208.0,8.234e-05,2]
[424944650,1781316644000,-652.0,8.502e-05,2]
[424944643,1781316644000,-483.24789205,8.501e-05,2]
[424944651,1781316644000,-4536.17712779,8.502e-05,2]
[424944962,1781316665000,-1425.08,8.502e-05,2]
[424944963,1781316666000,-6761.62,8.502e-05,2]
[424944966,1781316666000,-10292.43245139,8.502e-05,2]
[424944965,1781316666000,-2626.17256136,8.502e-05,2]
[424944964,1781316666000,-5192.09556759,8.502e-05,2]
[424944969,1781316688000,-1380.58219916,8.502e-05,2]
[424944970,1781316712000,-859.6771428,8.305e-05,2]
[424944971,1781316719000,-822.2416,8.05e-05,2]
[424944973,1781316719000,-401.05,8.486e-05,2]
[424944972,1781316719000,-1268.60853,8.178e-05,2]
[424944977,1781316724000,260.67834491,8.152e-05,2]
[424944976,1781316724000,500.0,8.152e-05,2]
[424944975,1781316724000,500.0,8.152e-05,2]
[424944974,1781316724000,167.7442073,8.152e-05,2]
[424944979,1781316764000,-500.0,8.152e-05,2]
[424944980,1781316766000,208.41246794,8.672e-05,7]
[424944981,1781316817000,-500.0,8.151e-05,2]
[424944982,1781316976000,-790.46778663,8.15e-05,2]
[424944983,1781317030000,-1057.43,8.078e-05,2]
[424944984,1781317083000,-250.0,8.114e-05,2]
[424944985,1781317084000,153.74,6.431e-05,2]
[424944986,1781317136000,-500.0,8.148e-05,2]
[424944988,1781317190000,-500.0,8.148e-05,2]
[424944989,1781317244000,-500.0,8.148e-05,2]
[424944991,1781317297000,-200.0,7.934e-05,2]
[424944992,1781317350000,-544.545011,8.147e-05,2]
[424944993,1781317403000,-500.0,8.146e-05,2]
[424944995,1781317456000,-500.0,8.146e-05,2]
[424945014,1781317547000,-240.04769291,8.145e-05,2]
[424945016,1781317556000,-203.85994083,8.145e-05,2]
[424945015,1781317556000,-259.95230709,8.145e-05,2]
[424945017,1781317595000,-385.48587114,8.144e-05,2]
[424945019,1781317669000,-200.0,8e-05,2]
[424945020,1781317722000,-162.92,8e-05,2]
[424945021,1781317775000,-500.0,8.143e-05,2]
[424945022,1781317828000,-500.0,8.143e-05,2]
[424945031,1781317831000,-160.0,8.156e-05,2]
[424945033,1781317831000,-166.71,8.219e-05,2]
[424945030,1781317831000,-160.28578436,8.146e-05,2]
[424945029,1781317831000,-250.0,8.145e-05,2]
[424945026,1781317831000,-500.0,8.143e-05,2]
[424945027,1781317831000,-500.0,8.143e-05,2]
[424945025,1781317831000,-500.0,8.143e-05,2]
[424945028,1781317831000,-292.79240786,8.143e-05,2]
[424945035,1781317831000,-1271.63,8.219e-05,2]
[424945047,1781317831000,-150.0,8.283e-05,2]
[424945037,1781317831000,-1963.02,8.219e-05,2]
[424945039,1781317831000,-500.0,8.283e-05,2]
[424945040,1781317831000,-500.0,8.283e-05,2]
[424945042,1781317831000,-262.86814794,8.283e-05,2]
[424945045,1781317831000,-382.47484144,8.283e-05,2]
[424945044,1781317831000,-226.34298992,8.283e-05,2]
[424945050,1781317831000,-33429.05805729,8.284e-05,2]
[424945048,1781317831000,-43528.30447667,8.284e-05,2]
[424945046,1781317831000,-211.93125851,8.283e-05,2]
[424945038,1781317831000,-164.64,8.219e-05,2]
[424945064,1781317837000,-26417.42467543,8.284e-05,2]
[424945062,1781317837000,-1125.241628,8.284e-05,2]
[424945063,1781317837000,-1122.70891671,8.284e-05,2]
[424945066,1781317837000,-1409.0,8.284e-05,2]
[424945067,1781317837000,-470.3606827,8.284e-05,2]
[424945074,1781317837000,-533.36442938,8.284e-05,2]
[424945065,1781317837000,-281.6393173,8.284e-05,2]
[424945168,1781317841000,-474.76,8.284e-05,2]
[424945167,1781317841000,-4515.09865678,8.284e-05,2]
[424945165,1781317841000,-29452.62355319,8.284e-05,2]
[424945166,1781317841000,-463.01303732,8.284e-05,2]
[424945171,1781317842000,-1919.82542775,8.284e-05,2]
[424945173,1781317842000,-292.7355721,8.284e-05,2]
[424945174,1781317842000,-1118.42145351,8.284e-05,2]
[424945172,1781317842000,-116511.93388558,8.284e-05,2]
[424945179,1781317843000,-563.51226514,8.305e-05,2]
[424945177,1781317843000,-5668.81578349,8.284e-05,2]
[424945178,1781317843000,-1001.55355173,8.304e-05,2]
[424945196,1781317845000,-1106.11,8.305e-05,2]
[424945195,1781317845000,-2216.07317504,8.305e-05,2]
[424945197,1781317846000,-51.53469421,8.305e-05,2]
[424945202,1781317846000,-1659.07205933,8.305e-05,2]
[424945198,1781317846000,-2457.49041117,8.305e-05,2]
[424945199,1781317846000,-31635.58486907,8.305e-05,2]
[424945200,1781317846000,-360.58698395,8.305e-05,2]
[424945201,1781317846000,-116540.48294856,8.305e-05,2]
[424945207,1781317848000,247.0,8.864e-05,5]
[424945208,1781317882000,-5000.0,8.305e-05,2]
[424945209,1781317904000,-5000.0,8.305e-05,2]
[424945210,1781317926000,-1560.37485156,8.305e-05,2]
[424945211,1781317948000,-1560.37485156,8.305e-05,2]
[424945212,1781317974000,-380.24617428,8.283e-05,2]
[424945214,1781318023000,-150.0,8.304e-05,2]
[424945215,1781318243000,-1560.37485156,8.259e-05,2]
[424945216,1781318268000,-439.62514844,8.259e-05,2]
[424945217,1781318321000,-533.0,8.25e-05,2]
[424945218,1781318375000,-500.0,8.219e-05,2]
[424945221,1781318420000,-150.0,8.219e-05,2]
[424945222,1781318473000,-500.0,7.602e-05,2]
[424945223,1781318527000,-250.0,7.61e-05,2]
[424945232,1781318541000,-500.0,8.219e-05,2]
[424945238,1781318541000,-150.0,8.219e-05,2]
[424945236,1781318541000,-500.0,8.219e-05,2]
[424945237,1781318541000,-590.44740953,8.219e-05,2]
[424945235,1781318541000,-187.5331921,8.219e-05,2]
[424945234,1781318541000,-500.0,8.219e-05,2]
[424945233,1781318541000,-500.0,8.219e-05,2]
[424945224,1781318541000,-150.0,7.776e-05,2]
[424945239,1781318541000,-150.0,8.219e-05,2]
[424945230,1781318541000,-500.0,8.219e-05,2]
[424945228,1781318541000,-500.0,8.218e-05,2]
[424945229,1781318541000,-208.72297068,8.218e-05,2]
[424945227,1781318541000,-500.0,8.218e-05,2]
[424945225,1781318541000,-224.0,7.853e-05,2]
[424945226,1781318541000,-202.69763327,7.86e-05,2]
[424945231,1781318541000,-152.28554388,8.219e-05,2]
[424945241,1781318541000,-500.0,8.219e-05,2]
[424945253,1781318541000,-500.0,8.219e-05,2]
[424945242,1781318541000,-500.0,8.219e-05,2]
[424945240,1781318541000,-209.75926256,8.219e-05,2]
[424945259,1781318541000,-319.68685379,8.248e-05,2]
[424945257,1781318541000,-318.33250918,8.219e-05,2]
[424945258,1781318541000,-150.0,8.219e-05,2]
[424945256,1781318541000,-500.0,8.219e-05,2]
[424945254,1781318541000,-500.0,8.219e-05,2]
[424945255,1781318541000,-500.0,8.219e-05,2]
[424945251,1781318541000,-500.0,8.219e-05,2]
[424945252,1781318541000,-500.0,8.219e-05,2]
[424945249,1781318541000,-161.54451298,8.219e-05,2]
[424945244,1781318541000,-500.0,8.219e-05,2]
[424945245,1781318541000,-500.0,8.219e-05,2]
[424945246,1781318541000,-605.13345371,8.219e-05,2]
[424945243,1781318541000,-500.0,8.219e-05,2]
[424945250,1781318541000,-500.0,8.219e-05,2]
[424945248,1781318541000,-150.0,8.219e-05,2]
[424945247,1781318541000,-150.0,8.219e-05,2]
[424945260,1781318542000,-300.0,8.277e-05,2]
[424945261,1781318542000,-236.27656958,8.291e-05,2]
[424945263,1781318542000,-500.0,8.291e-05,2]
[424945262,1781318542000,-211.02743578,8.291e-05,2]
[424945265,1781318542000,-500.0,8.291e-05,2]
[424945267,1781318542000,-264.52420296,8.291e-05,2]
[424945264,1781318542000,-184.00770356,8.291e-05,2]
[424945266,1781318542000,-438.56630985,8.291e-05,2]
[424945268,1781318542000,-3785.45443659,8.292e-05,2]
[424945269,1781318580000,-1263.67,8.21e-05,2]
[424945270,1781318602000,-1909.13,8.21e-05,2]
[424945271,1781318624000,-1909.13,8.21e-05,2]
[424945273,1781318637000,-9168.7134233,8.21e-05,2]
[424945272,1781318637000,-831.2865767,8.209e-05,2]
[424945277,1781318777000,174.63832182,0.00021,120]
[424945281,1781318780000,-8600.0,8.21e-05,2]
[424945280,1781318780000,-1000.0,8.209e-05,2]
[424945279,1781318780000,-250.0,8.209e-05,2]
[424945278,1781318780000,-150.0,8.209e-05,2]
[424945282,1781318785000,349.27664364,0.00021,120]
[424945283,1781318854000,-500.0,8.209e-05,2]
[424945284,1781318907000,-200.0,7.429e-05,2]
[424945302,1781318917000,-500.0,8.209e-05,2]
[424945287,1781318917000,-193.33086742,8.172e-05,2]
[424945285,1781318917000,-200.0,8e-05,2]
[424945288,1781318917000,-150.0,8.209e-05,2]
[424945286,1781318917000,-150.0,8.079e-05,2]
[424945303,1781318917000,-500.0,8.209e-05,2]
[424945290,1781318917000,-500.0,8.209e-05,2]
[424945292,1781318917000,-500.0,8.209e-05,2]
[424945291,1781318917000,-500.0,8.209e-05,2]
[424945289,1781318917000,-500.0,8.209e-05,2]
[424945293,1781318917000,-500.0,8.209e-05,2]
[424945296,1781318917000,-500.0,8.209e-05,2]
[424945294,1781318917000,-500.0,8.209e-05,2]
[424945297,1781318917000,-500.0,8.209e-05,2]
[424945299,1781318917000,-500.0,8.209e-05,2]
[424945300,1781318917000,-500.0,8.209e-05,2]
[424945298,1781318917000,-500.0,8.209e-05,2]
[424945301,1781318917000,-406.13383807,8.209e-05,2]
[424945295,1781318917000,-500.0,8.209e-05,2]
[424945304,1781318918000,-500.0,8.209e-05,2]
[424945307,1781318918000,-400.53529451,8.209e-05,2]
[424945306,1781318918000,-500.0,8.209e-05,2]
[424945305,1781318918000,-500.0,8.209e-05,2]
[424945308,1781318961000,-99.46470549,8.209e-05,2]
[424945309,1781318965000,-580.08735588,7.45e-05,2]
[424945310,1781318968000,-330.12311213,7.45e-05,2]
[424945311,1781318968000,-89.78953199,7.45e-05,2]
[424945312,1781318973000,-3100.40232554,8.11e-05,2]
[424945314,1781318973000,-1317.7470009,8.11e-05,2]
[424945313,1781318973000,-3100.40232554,8.11e-05,2]
[424945317,1781319014000,-165.33,8.015e-05,2]
[424945316,1781319014000,-165.33,7.697e-05,2]
[424945323,1781319031000,-5691.20366415,8.11e-05,2]
[424945319,1781319031000,-1599.67990502,8.11e-05,2]
[424945322,1781319031000,-2642.63241699,8.11e-05,2]
[424945324,1781319031000,-1110.61079819,8.11e-05,2]
[424945325,1781319031000,-491.3936886,8.11e-05,2]
[424945326,1781319031000,-808.11866524,8.11e-05,2]
[424945327,1781319031000,-2821.52650458,8.11e-05,2]
[424945321,1781319031000,-985.20374786,8.11e-05,2]
[424945329,1781319031000,-840.09766043,8.11e-05,2]
[424945330,1781319031000,-457.35471932,8.11e-05,2]
[424945331,1781319031000,-351585.55575083,8.11e-05,2]
[424945332,1781319031000,-175528.37142963,8.11e-05,2]
[424945333,1781319031000,-221258.4599033,8.11e-05,2]
[424945335,1781319031000,-1254.41808677,8.11e-05,2]
[424945334,1781319031000,-247152.34807151,8.11e-05,2]
[424945328,1781319031000,-459.78807778,8.11e-05,2]
[424945368,1781319039000,-500.0,8.208e-05,2]
[424945374,1781319039000,-500.0,8.208e-05,2]
[424945372,1781319039000,-500.0,8.208e-05,2]
[424945371,1781319039000,-556.93876226,8.208e-05,2]
[424945366,1781319039000,-48040.54315782,8.11e-05,2]
[424945370,1781319039000,-500.0,8.208e-05,2]
[424945367,1781319039000,-500.60202346,8.208e-05,2]
[424945365,1781319039000,-306.9964169,8.109e-05,2]
[424945364,1781319039000,-500.0,8.109e-05,2]
[424945369,1781319039000,-500.92216935,8.208e-05,2]
[424945376,1781319039000,-156.65990483,8.208e-05,2]
[424945375,1781319039000,-500.0,8.208e-05,2]
[424945378,1781319039000,-199.5,8.21e-05,2]
[424945377,1781319039000,-263.77887318,8.21e-05,2]
[424945380,1781319039000,-850.06348174,8.21e-05,2]
[424945379,1781319039000,-92230.89683969,8.21e-05,2]
[424945382,1781319039000,-488.32247897,8.21e-05,2]
[424945381,1781319039000,-1634.95748094,8.21e-05,2]
[424945383,1781319039000,-2446.37758397,8.21e-05,2]
[424945384,1781319039000,-1599.494872,8.21e-05,2]
[424945385,1781319039000,-5232.85928881,8.21e-05,2]
[424945387,1781319039000,-1359.87476104,8.21e-05,2]
[424945373,1781319039000,-500.0,8.208e-05,2]
[424945389,1781319040000,-10884.62166632,8.21e-05,2]
[424945388,1781319040000,-427.10147055,8.21e-05,2]
[424945390,1781319043000,-315.54104265,8.208e-05,2]
[424945391,1781319043000,-588.191573,8.21e-05,2]
[424945392,1781319043000,-385.01197264,8.21e-05,2]
[424945403,1781319045000,-21340.8421416,8.222e-05,2]
[424945404,1781319045000,-107188.1735392,8.222e-05,2]
[424945400,1781319045000,-369.2,8.219e-05,2]
[424945402,1781319045000,-5193.35,8.219e-05,2]
[424945399,1781319045000,-2250.38,8.219e-05,2]
[424945401,1781319045000,-24700.8,8.219e-05,2]
[424945396,1781319045000,-165.04,8.219e-05,2]
[424945398,1781319045000,-2000.0,8.219e-05,2]
[424945397,1781319045000,-904.82,8.219e-05,2]
[424945394,1781319045000,-93130.4387459,8.212e-05,2]
[424945395,1781319045000,-286334.407167,8.219e-05,2]
[424945393,1781319045000,-173519.64396413,8.21e-05,2]
[424945405,1781319046000,-343.46,8.222e-05,2]
[424945406,1781319046000,-1798.9773184,8.222e-05,2]
[424945408,1781319067000,-2249.98147386,8.222e-05,2]
[424945409,1781319068000,152.0,8.682e-05,7]
[424945410,1781319090000,-500.0,8e-05,2]
[424945412,1781319141000,-2080.17592889,8e-05,2]
[424945413,1781319167000,-2080.17592889,8e-05,2]
[424945415,1781319193000,-1151.57,8e-05,2]
[424945416,1781319216000,-500.0,7.999e-05,2]
[424945421,1781319479000,-1969.5,7.22e-05,2]
[424945422,1781319503000,-1969.5,7.22e-05,2]
[424945423,1781319526000,-1875.73,7.22e-05,2]
[424945424,1781319577000,-1918.93,7.177e-05,2]
[424945425,1781319631000,-588.23,7.127e-05,2]
[424945427,1781319634000,184.68,5.588e-05,2]
[424945431,1781319685000,-500.0,7.127e-05,2]
[424945432,1781319738000,-1217.65,7.029e-05,2]
[424945433,1781319791000,-209.8,6.978e-05,2]
[424945434,1781319844000,-150.0,7.069e-05,2]
[424945435,1781319898000,-250.0,7.084e-05,2]
[424945437,1781320050000,-229.10673949,7.004e-05,2]
[424945436,1781320050000,-200.0,7.004e-05,2]
[424945438,1781320052000,-261.91921912,7.004e-05,2]
[424945439,1781320107000,-200.0,6.71e-05,2]
[424945450,1781320162000,-150.35735797,7.385e-05,2]
[424945440,1781320162000,-4378.14404139,7.004e-05,2]
[424945442,1781320162000,-150.0,7.073e-05,2]
[424945443,1781320162000,-269.12051671,7.127e-05,2]
[424945444,1781320162000,-150.0,7.143e-05,2]
[424945441,1781320162000,-150.0,7.038e-05,2]
[424945445,1781320162000,-164.51,7.149e-05,2]
[424945447,1781320162000,-254.0,7.213e-05,2]
[424945448,1781320162000,-193.3194991,7.381e-05,2]
[424945449,1781320162000,-300.0,7.384e-05,2]
[424945446,1781320162000,-266.46324604,7.166e-05,2]
[424945455,1781320163000,-889.65022802,7.003e-05,2]
[424945451,1781320163000,-3177.61044648,7.385e-05,2]
[424945452,1781320163000,-591.85996057,7.386e-05,2]
[424945453,1781320163000,-500.0,7.386e-05,2]
[424945454,1781320163000,-1743.29325236,7.387e-05,2]
[424945456,1781320163000,-889.65022802,7.003e-05,2]
[424945460,1781320163000,-889.65022802,7.003e-05,2]
[424945459,1781320163000,-889.65022802,7.003e-05,2]
[424945458,1781320163000,-889.65022802,7.003e-05,2]
[424945461,1781320163000,-889.65022802,7.003e-05,2]
[424945464,1781320163000,-889.65022802,7.003e-05,2]
[424945462,1781320163000,-889.65022802,7.003e-05,2]
[424945463,1781320163000,-889.65022802,7.003e-05,2]
[424945465,1781320163000,-889.65022802,7.003e-05,2]
[424945466,1781320163000,-889.65022802,7.003e-05,2]
[424945457,1781320163000,-889.65022802,7.003e-05,2]
[424945470,1781320164000,-889.65022802,7.003e-05,2]
[424945468,1781320164000,-889.65022802,7.003e-05,2]
[424945467,1781320164000,-889.65022802,7.003e-05,2]
[424945469,1781320164000,-889.65022802,7.003e-05,2]
[424945471,1781320164000,-889.65022802,7.003e-05,2]
[424945472,1781320164000,-889.65022802,7.003e-05,2]
[424945473,1781320164000,-889.65022802,7.003e-05,2]
[424945476,1781320164000,-889.65022802,7.003e-05,2]
[424945475,1781320164000,-889.65022802,7.003e-05,2]
[424945477,1781320164000,-889.65022802,7.003e-05,2]
[424945478,1781320164000,-889.65022802,7.003e-05,2]
[424945479,1781320164000,-889.65022802,7.003e-05,2]
[424945480,1781320164000,-889.65022802,7.003e-05,2]
[424945481,1781320164000,-889.65022802,7.003e-05,2]
[424945482,1781320164000,-889.65022802,7.003e-05,2]
[424945483,1781320164000,-889.65022802,7.003e-05,2]
[424945484,1781320164000,-889.65022802,7.003e-05,2]
[424945474,1781320164000,-889.65022802,7.003e-05,2]
[424945491,1781320165000,-889.65022802,7.003e-05,2]
[424945496,1781320165000,-889.65022802,7.003e-05,2]
[424945495,1781320165000,-889.65022802,7.003e-05,2]
[424945494,1781320165000,-889.65022802,7.003e-05,2]
[424945493,1781320165000,-889.65022802,7.003e-05,2]
[424945492,1781320165000,-889.65022802,7.003e-05,2]
[424945498,1781320165000,-889.65022802,7.003e-05,2]
[424945488,1781320165000,-889.65022802,7.003e-05,2]
[424945489,1781320165000,-889.65022802,7.003e-05,2]
[424945487,1781320165000,-889.65022802,7.003e-05,2]
[424945486,1781320165000,-889.65022802,7.003e-05,2]
[424945485,1781320165000,-889.65022802,7.003e-05,2]
[424945490,1781320165000,-889.65022802,7.003e-05,2]
[424945497,1781320165000,-889.65022802,7.003e-05,2]